[Event "Late-Titled-Tuesday-Blitz-September-05-2023"]
[Site "Chess.com"]
[Date "2023.09.05"]
[Round "1"]
[White "Sanan_Sjugirov"]
[Black "Evhen_Taranenko"]
[Result "1-0"]
[WhiteElo "2891"]
[BlackElo "2464"]
[TimeControl "180+1"]
[EndTime "14:02:56 PDT"]
[Termination "Sanan_Sjugirov won by resignation"]

1. Nf3 {[%clk 0:03:00.9]} 1... Nf6 {[%clk 0:02:59.9]} 2. e3 {[%clk 0:03:01]}
2... g6 {[%clk 0:03:00.1]} 3. d4 {[%clk 0:03:01.3]} 3... Bg7 {[%clk 0:03:00.4]}
4. b3 {[%clk 0:03:01.9]} 4... O-O {[%clk 0:03:01]} 5. Bb2 {[%clk 0:03:02.6]}
5... d6 {[%clk 0:03:01.6]} 6. Be2 {[%clk 0:03:01.7]} 6... Nbd7 {[%clk
0:03:02.1]} 7. O-O {[%clk 0:03:01.4]} 7... e5 {[%clk 0:03:02.5]} 8. dxe5 {[%clk
0:03:01.7]} 8... Ng4 {[%clk 0:03:02.8]} 9. c4 {[%clk 0:03:01.6]} 9... Ngxe5
{[%clk 0:03:02.4]} 10. Nc3 {[%clk 0:03:01.4]} 10... Nxf3+ {[%clk 0:02:54]} 11.
Bxf3 {[%clk 0:03:02.3]} 11... Ne5 {[%clk 0:02:53]} 12. Be2 {[%clk 0:03:02.2]}
12... c6 {[%clk 0:02:49.7]} 13. Qc2 {[%clk 0:03:01.9]} 13... Qc7 {[%clk
0:02:49.3]} 14. Rad1 {[%clk 0:03:01.4]} 14... Be6 {[%clk 0:02:44.9]} 15. Ne4
{[%clk 0:02:57.7]} 15... Bf5 {[%clk 0:02:33.8]} 16. f4 {[%clk 0:02:47.4]} 16...
Nd7 {[%clk 0:02:13]} 17. Bxg7 {[%clk 0:02:46.6]} 17... Bxe4 {[%clk 0:02:13.1]}
18. Qxe4 {[%clk 0:02:45.6]} 18... Kxg7 {[%clk 0:02:09.7]} 19. Qd4+ {[%clk
0:02:45.9]} 19... Nf6 {[%clk 0:02:06.7]} 20. g4 {[%clk 0:02:41.4]} 20... c5
{[%clk 0:01:32.3]} 21. Qc3 {[%clk 0:02:39.8]} 1-0

[Event "Late-Titled-Tuesday-Blitz-September-05-2023"]
[Site "Chess.com"]
[Date "2023.09.05"]
[Round "1"]
[White "K_A_S_T_O_R"]
[Black "czasnaszachy"]
[Result "1/2-1/2"]
[WhiteElo "2949"]
[BlackElo "2498"]
[TimeControl "180+1"]
[EndTime "14:02:58 PDT"]
[Termination "Game drawn by repetition"]

1. e4 {[%clk 0:03:00.9]} 1... c5 {[%clk 0:02:59.4]} 2. Nf3 {[%clk 0:03:00.6]}
2... e6 {[%clk 0:02:59.6]} 3. d4 {[%clk 0:03:00.7]} 3... cxd4 {[%clk 0:02:59.8]}
4. Nxd4 {[%clk 0:03:01.3]} 4... Nc6 {[%clk 0:03:00.3]} 5. Nb5 {[%clk 0:03:01.2]}
5... d6 {[%clk 0:02:58.2]} 6. c4 {[%clk 0:03:00.4]} 6... Nf6 {[%clk 0:02:56.8]}
7. N1c3 {[%clk 0:02:59.6]} 7... a6 {[%clk 0:02:56.7]} 8. Na3 {[%clk 0:02:59.5]}
8... Be7 {[%clk 0:02:56.6]} 9. Be2 {[%clk 0:02:59.3]} 9... O-O {[%clk
0:02:56.7]} 10. O-O {[%clk 0:02:59.9]} 10... b6 {[%clk 0:02:56.4]} 11. Be3
{[%clk 0:03:00.2]} 11... Bb7 {[%clk 0:02:54.8]} 12. Rc1 {[%clk 0:03:00.4]} 12...
Ne5 {[%clk 0:02:50.9]} 13. f3 {[%clk 0:03:00.2]} 13... Rc8 {[%clk 0:02:44.9]}
14. Qd2 {[%clk 0:02:58.7]} 14... Qc7 {[%clk 0:02:37.9]} 15. Rfd1 {[%clk
0:02:57.4]} 15... Ned7 {[%clk 0:02:36.6]} 16. Kh1 {[%clk 0:02:56]} 16... Qb8
{[%clk 0:02:35.2]} 17. Bf1 {[%clk 0:02:55.3]} 17... Kh8 {[%clk 0:02:27.5]} 18.
Rc2 {[%clk 0:02:48.8]} 18... Rfd8 {[%clk 0:02:03.3]} 19. Qf2 {[%clk 0:02:45.1]}
19... Ba8 {[%clk 0:01:59.2]} 20. Rcd2 {[%clk 0:02:42.8]} 20... Rg8 {[%clk
0:01:57.8]} 21. Bf4 {[%clk 0:02:38.7]} 21... Ne5 {[%clk 0:01:51]} 22. Be3 {[%clk
0:02:37.7]} 22... Ned7 {[%clk 0:01:49.8]} 23. Na4 {[%clk 0:02:23.4]} 23... Nc5
{[%clk 0:01:40.4]} 24. Nc3 {[%clk 0:02:22.9]} 24... Ncd7 {[%clk 0:01:40.1]}
1/2-1/2

[Event "Late-Titled-Tuesday-Blitz-September-05-2023"]
[Site "Chess.com"]
[Date "2023.09.05"]
[Round "1"]
[White "Machteld145"]
[Black "melissa_guez"]
[Result "1-0"]
[WhiteElo "2517"]
[BlackElo "2045"]
[TimeControl "180+1"]
[EndTime "14:03:39 PDT"]
[Termination "Machteld145 won by resignation"]

1. e4 {[%clk 0:02:59.6]} 1... c5 {[%clk 0:02:59.6]} 2. Nf3 {[%clk 0:02:56.4]}
2... e6 {[%clk 0:02:59.4]} 3. d4 {[%clk 0:02:56.6]} 3... cxd4 {[%clk 0:03:00.3]}
4. Nxd4 {[%clk 0:02:57.1]} 4... Nc6 {[%clk 0:03:00]} 5. Nc3 {[%clk 0:02:57.4]}
5... Qc7 {[%clk 0:02:59.6]} 6. a3 {[%clk 0:02:56.8]} 6... a6 {[%clk 0:02:59.3]}
7. Be3 {[%clk 0:02:56.5]} 7... Nf6 {[%clk 0:02:58.8]} 8. Be2 {[%clk 0:02:54.6]}
8... b5 {[%clk 0:02:58.2]} 9. O-O {[%clk 0:02:52.3]} 9... Bb7 {[%clk 0:02:56.8]}
10. f4 {[%clk 0:02:50.4]} 10... Nxd4 {[%clk 0:02:55.9]} 11. Qxd4 {[%clk
0:02:47]} 11... Be7 {[%clk 0:02:36.6]} 12. Rad1 {[%clk 0:02:42.9]} 12... O-O
{[%clk 0:02:30.5]} 13. Bf3 {[%clk 0:02:37.9]} 13... d6 {[%clk 0:02:01.4]} 14. g4
{[%clk 0:02:28.3]} 14... Rfd8 {[%clk 0:01:55]} 15. g5 {[%clk 0:02:27.3]} 15...
Nd7 {[%clk 0:01:49.3]} 16. f5 {[%clk 0:02:26.4]} 16... Ne5 {[%clk 0:01:43.1]}
17. Bg2 {[%clk 0:02:13.7]} 17... exf5 {[%clk 0:01:28.5]} 18. exf5 {[%clk
0:02:06]} 18... f6 {[%clk 0:01:28.1]} 19. Nd5 {[%clk 0:02:03.4]} 19... fxg5
{[%clk 0:01:19.1]} 20. Nxc7 {[%clk 0:02:02.6]} 1-0

[Event "Late-Titled-Tuesday-Blitz-September-05-2023"]
[Site "Chess.com"]
[Date "2023.09.05"]
[Round "1"]
[White "platy3"]
[Black "Sinquefield"]
[Result "1-0"]
[WhiteElo "2915"]
[BlackElo "2470"]
[TimeControl "180+1"]
[EndTime "14:03:43 PDT"]
[Termination "platy3 won by resignation"]

1. e4 {[%clk 0:02:59.8]} 1... e6 {[%clk 0:02:58.3]} 2. d4 {[%clk 0:02:57]} 2...
d5 {[%clk 0:02:58.8]} 3. Nd2 {[%clk 0:02:55.2]} 3... Nf6 {[%clk 0:02:59.2]} 4.
e5 {[%clk 0:02:54.5]} 4... Nfd7 {[%clk 0:02:59.8]} 5. Bd3 {[%clk 0:02:54.1]}
5... c5 {[%clk 0:03:00.1]} 6. c3 {[%clk 0:02:54.8]} 6... Nc6 {[%clk 0:03:00.6]}
7. Ne2 {[%clk 0:02:55.4]} 7... cxd4 {[%clk 0:02:59.5]} 8. cxd4 {[%clk
0:02:56.3]} 8... f6 {[%clk 0:03:00.1]} 9. exf6 {[%clk 0:02:57]} 9... Nxf6 {[%clk
0:03:01]} 10. Nf3 {[%clk 0:02:57.6]} 10... Bd6 {[%clk 0:03:01.4]} 11. O-O {[%clk
0:02:58.3]} 11... Qc7 {[%clk 0:02:58.7]} 12. Bg5 {[%clk 0:02:58.6]} 12... O-O
{[%clk 0:02:58.5]} 13. Bh4 {[%clk 0:02:59.3]} 13... Nh5 {[%clk 0:02:58.2]} 14.
Qc2 {[%clk 0:02:59.8]} 14... h6 {[%clk 0:02:55.3]} 15. Bh7+ {[%clk 0:02:59.8]}
15... Kh8 {[%clk 0:02:55]} 16. Bg6 {[%clk 0:03:00.7]} 16... Rxf3 {[%clk
0:02:54.1]} 17. Bxh5 {[%clk 0:03:00.2]} 17... Rf5 {[%clk 0:02:45.1]} 18. Bg4
{[%clk 0:02:57.7]} 18... Rf8 {[%clk 0:02:39.2]} 19. Bg3 {[%clk 0:02:57.4]} 19...
e5 {[%clk 0:02:27.3]} 20. Bxc8 {[%clk 0:02:40.8]} 20... Raxc8 {[%clk 0:02:28.2]}
21. dxe5 {[%clk 0:02:29.3]} 21... Bxe5 {[%clk 0:02:24.4]} 22. Rad1 {[%clk
0:02:28.7]} 22... Qb6 {[%clk 0:02:14.5]} 23. Qd2 {[%clk 0:01:49.8]} 23... Bd6
{[%clk 0:01:43.6]} 24. Bxd6 {[%clk 0:01:47.7]} 1-0

[Event "Late-Titled-Tuesday-Blitz-September-05-2023"]
[Site "Chess.com"]
[Date "2023.09.05"]
[Round "1"]
[White "kleinebeer98"]
[Black "venturov"]
[Result "1-0"]
[WhiteElo "2842"]
[BlackElo "2443"]
[TimeControl "180+1"]
[EndTime "14:03:54 PDT"]
[Termination "kleinebeer98 won by resignation"]

1. e4 {[%clk 0:03:00]} 1... e5 {[%clk 0:02:59.4]} 2. Bc4 {[%clk 0:02:59.1]} 2...
Nf6 {[%clk 0:02:58.5]} 3. d3 {[%clk 0:02:59.3]} 3... c6 {[%clk 0:02:59]} 4. Nf3
{[%clk 0:02:59.4]} 4... Qc7 {[%clk 0:02:58.1]} 5. Bb3 {[%clk 0:03:00.3]} 5...
Bc5 {[%clk 0:02:57.6]} 6. O-O {[%clk 0:02:59.5]} 6... d6 {[%clk 0:02:58]} 7. c3
{[%clk 0:02:59.4]} 7... Bb6 {[%clk 0:02:56.3]} 8. h3 {[%clk 0:02:57.4]} 8... Be6
{[%clk 0:02:55.1]} 9. Nbd2 {[%clk 0:02:54.4]} 9... Nbd7 {[%clk 0:02:54]} 10. Qe2
{[%clk 0:02:53.9]} 10... h6 {[%clk 0:02:53.4]} 11. Bxe6 {[%clk 0:02:47.8]} 11...
fxe6 {[%clk 0:02:53.1]} 12. Nc4 {[%clk 0:02:48.7]} 12... O-O-O {[%clk
0:02:51.8]} 13. a4 {[%clk 0:02:48.1]} 13... Rhe8 {[%clk 0:02:45.5]} 14. a5
{[%clk 0:02:44]} 14... Bc5 {[%clk 0:02:45.1]} 15. b4 {[%clk 0:02:42.7]} 15... d5
{[%clk 0:02:45.5]} 16. Ncxe5 {[%clk 0:02:39.1]} 16... Bxf2+ {[%clk 0:02:16.8]}
17. Qxf2 {[%clk 0:02:35.9]} 17... Nxe5 {[%clk 0:02:17.4]} 18. Nxe5 {[%clk
0:02:36.3]} 18... Qxe5 {[%clk 0:02:16.8]} 19. Bf4 {[%clk 0:02:37.2]} 19... Qxc3
{[%clk 0:02:11.7]} 20. Qxa7 {[%clk 0:02:37.6]} 20... e5 {[%clk 0:02:10.1]} 21.
a6 {[%clk 0:02:17.1]} 21... bxa6 {[%clk 0:02:04.9]} 22. Qxa6+ {[%clk 0:02:06]}
22... Kd7 {[%clk 0:02:01.7]} 23. Bg3 {[%clk 0:02:03.4]} 23... Qxb4 {[%clk
0:01:39.4]} 24. Qa7+ {[%clk 0:02:00.8]} 24... Ke6 {[%clk 0:01:36.8]} 25. Qxg7
{[%clk 0:02:00.3]} 25... Qf8 {[%clk 0:01:31.2]} 26. Qg6 {[%clk 0:01:58.7]} 26...
Rd7 {[%clk 0:01:28.1]} 27. Qf5+ {[%clk 0:01:57.5]} 27... Kf7 {[%clk 0:01:24.4]}
28. Qxf6+ {[%clk 0:01:57.5]} 1-0

[Event "Late-Titled-Tuesday-Blitz-September-05-2023"]
[Site "Chess.com"]
[Date "2023.09.05"]
[Round "1"]
[White "Gogolev_Artemy"]
[Black "NovakCabarkapa"]
[Result "0-1"]
[WhiteElo "2428"]
[BlackElo "2803"]
[TimeControl "180+1"]
[EndTime "14:04:02 PDT"]
[Termination "NovakCabarkapa won by resignation"]

1. d4 {[%clk 0:03:00.9]} 1... g6 {[%clk 0:02:59.9]} 2. Bf4 {[%clk 0:02:58.4]}
2... Bg7 {[%clk 0:02:59.8]} 3. e3 {[%clk 0:02:58.7]} 3... d6 {[%clk 0:03:00.5]}
4. h3 {[%clk 0:02:59]} 4... Nd7 {[%clk 0:03:00.9]} 5. Nf3 {[%clk 0:02:59.3]}
5... e5 {[%clk 0:03:00.5]} 6. Bh2 {[%clk 0:02:59.8]} 6... Nh6 {[%clk 0:02:59.3]}
7. Be2 {[%clk 0:02:59.9]} 7... O-O {[%clk 0:02:59.4]} 8. O-O {[%clk 0:03:00.3]}
8... e4 {[%clk 0:02:59.9]} 9. Nfd2 {[%clk 0:03:00.1]} 9... f5 {[%clk 0:03:00.5]}
10. c4 {[%clk 0:02:57.2]} 10... Nf6 {[%clk 0:02:59.4]} 11. Nc3 {[%clk
0:02:56.8]} 11... g5 {[%clk 0:02:59.3]} 12. b4 {[%clk 0:02:26.7]} 12... g4
{[%clk 0:02:54.7]} 13. Bf4 {[%clk 0:02:16.4]} 13... Kh8 {[%clk 0:02:42.5]} 14.
c5 {[%clk 0:02:05.5]} 14... Nh5 {[%clk 0:02:36.2]} 15. Bxh6 {[%clk 0:02:02.6]}
15... Bxh6 {[%clk 0:02:37.1]} 16. hxg4 {[%clk 0:02:02.2]} 16... Nf6 {[%clk
0:02:37.4]} 17. cxd6 {[%clk 0:01:49.4]} 17... cxd6 {[%clk 0:02:26.1]} 18. g5
{[%clk 0:01:47.4]} 18... Bxg5 {[%clk 0:02:24.9]} 19. g3 {[%clk 0:01:47.5]} 19...
Rg8 {[%clk 0:02:14]} 20. Kg2 {[%clk 0:01:44.3]} 20... d5 {[%clk 0:02:13.3]} 21.
Rc1 {[%clk 0:01:41.1]} 21... a6 {[%clk 0:02:11.1]} 22. Rh1 {[%clk 0:01:30.4]}
22... Qd6 {[%clk 0:02:10.5]} 23. Qb3 {[%clk 0:01:29.9]} 23... Bxe3 {[%clk
0:02:07.2]} 24. fxe3 {[%clk 0:01:22.6]} 24... Qxg3+ {[%clk 0:02:03.9]} 25. Kf1
{[%clk 0:01:22.9]} 25... Qg2+ {[%clk 0:02:03.9]} 26. Ke1 {[%clk 0:01:22.3]}
26... Qxh1+ {[%clk 0:02:04.3]} 27. Nf1 {[%clk 0:01:23.2]} 27... Be6 {[%clk
0:01:58.6]} 28. Kd2 {[%clk 0:01:20.5]} 28... Qh6 {[%clk 0:01:56.3]} 0-1

[Event "Late-Titled-Tuesday-Blitz-September-05-2023"]
[Site "Chess.com"]
[Date "2023.09.05"]
[Round "1"]
[White "Rumpel-VK"]
[Black "StarkyNZ"]
[Result "1-0"]
[WhiteElo "2559"]
[BlackElo "2235"]
[TimeControl "180+1"]
[EndTime "14:04:27 PDT"]
[Termination "Rumpel-VK won by checkmate"]

1. e4 {[%clk 0:02:59.4]} 1... e6 {[%clk 0:02:59.1]} 2. d4 {[%clk 0:02:58.3]}
2... d5 {[%clk 0:02:59.1]} 3. exd5 {[%clk 0:02:58.1]} 3... exd5 {[%clk
0:02:59.1]} 4. Nf3 {[%clk 0:02:57.6]} 4... Bd6 {[%clk 0:02:58.4]} 5. c4 {[%clk
0:02:56.1]} 5... c6 {[%clk 0:02:57.5]} 6. Nc3 {[%clk 0:02:41.1]} 6... Ne7 {[%clk
0:02:54.7]} 7. h3 {[%clk 0:02:30.6]} 7... h6 {[%clk 0:02:50.2]} 8. Bd3 {[%clk
0:02:29.6]} 8... dxc4 {[%clk 0:02:44.4]} 9. Bxc4 {[%clk 0:02:28.9]} 9... Nd7
{[%clk 0:02:45.3]} 10. O-O {[%clk 0:02:21.2]} 10... Nb6 {[%clk 0:02:45.6]} 11.
Bb3 {[%clk 0:02:18.2]} 11... O-O {[%clk 0:02:45.6]} 12. Ne5 {[%clk 0:02:17.9]}
12... Bf5 {[%clk 0:02:44.5]} 13. Qh5 {[%clk 0:02:15.6]} 13... Bxe5 {[%clk
0:02:34.2]} 14. dxe5 {[%clk 0:02:14.3]} 14... Bg6 {[%clk 0:02:34]} 15. Qg4
{[%clk 0:02:12.4]} 15... Nbd5 {[%clk 0:02:24.7]} 16. Nxd5 {[%clk 0:02:10.9]}
16... Nxd5 {[%clk 0:02:19.5]} 17. e6 {[%clk 0:01:57.1]} 17... Re8 {[%clk
0:02:15.7]} 18. exf7+ {[%clk 0:01:56]} 18... Kxf7 {[%clk 0:02:13.3]} 19. f4
{[%clk 0:01:45.7]} 19... h5 {[%clk 0:02:09.1]} 20. Qg3 {[%clk 0:01:42.4]} 20...
Be4 {[%clk 0:02:06.8]} 21. f5 {[%clk 0:01:37.2]} 21... Qf6 {[%clk 0:02:03.7]}
22. Bg5 {[%clk 0:01:35]} 22... Qd4+ {[%clk 0:02:03.4]} 23. Kh1 {[%clk 0:01:30]}
23... Qxb2 {[%clk 0:01:49.5]} 24. Rae1 {[%clk 0:01:19.7]} 24... Kf8 {[%clk
0:01:47.7]} 25. f6 {[%clk 0:01:14.5]} 25... Nxf6 {[%clk 0:01:37.8]} 26. Rxf6+
{[%clk 0:01:13.8]} 26... gxf6 {[%clk 0:01:35.3]} 27. Bh6+ {[%clk 0:01:12.1]}
27... Ke7 {[%clk 0:01:35.8]} 28. Qc7# {[%clk 0:01:11.5]} 1-0

[Event "Late-Titled-Tuesday-Blitz-September-05-2023"]
[Site "Chess.com"]
[Date "2023.09.05"]
[Round "1"]
[White "crazy_but_lazy"]
[Black "PedroGil25"]
[Result "0-1"]
[WhiteElo "2593"]
[BlackElo "2330"]
[TimeControl "180+1"]
[EndTime "14:04:36 PDT"]
[Termination "PedroGil25 won by checkmate"]

1. Nf3 {[%clk 0:02:59.1]} 1... c5 {[%clk 0:02:59.5]} 2. c4 {[%clk 0:02:58]} 2...
Nc6 {[%clk 0:02:59.5]} 3. e3 {[%clk 0:02:57.9]} 3... Nf6 {[%clk 0:02:58]} 4. d4
{[%clk 0:02:58.4]} 4... cxd4 {[%clk 0:02:58.1]} 5. exd4 {[%clk 0:02:59.3]} 5...
d5 {[%clk 0:02:58.5]} 6. Nc3 {[%clk 0:03:00]} 6... g6 {[%clk 0:02:57.5]} 7. cxd5
{[%clk 0:02:53.9]} 7... Nxd5 {[%clk 0:02:58.4]} 8. Bc4 {[%clk 0:02:53.9]} 8...
Nxc3 {[%clk 0:02:57.5]} 9. Qb3 {[%clk 0:02:48.8]} 9... e6 {[%clk 0:02:49.3]} 10.
bxc3 {[%clk 0:02:48.8]} 10... Bg7 {[%clk 0:02:49.6]} 11. Ba3 {[%clk 0:02:48.1]}
11... Bf8 {[%clk 0:02:50.2]} 12. O-O {[%clk 0:02:45.8]} 12... Bxa3 {[%clk
0:02:48.5]} 13. Qxa3 {[%clk 0:02:46.1]} 13... Qa5 {[%clk 0:02:47.8]} 14. Qb3
{[%clk 0:02:44.9]} 14... O-O {[%clk 0:02:47.2]} 15. Rfe1 {[%clk 0:02:45.2]}
15... Qc7 {[%clk 0:02:44.3]} 16. h4 {[%clk 0:02:44.3]} 16... Na5 {[%clk
0:02:43.8]} 17. Qd1 {[%clk 0:02:35.9]} 17... Nxc4 {[%clk 0:02:43]} 18. h5 {[%clk
0:02:36]} 18... Bd7 {[%clk 0:02:41.6]} 19. Rb1 {[%clk 0:02:23.1]} 19... b6
{[%clk 0:02:39.7]} 20. Ng5 {[%clk 0:02:20.6]} 20... Qf4 {[%clk 0:02:32.5]} 21.
Ne4 {[%clk 0:02:20.4]} 21... Rac8 {[%clk 0:02:28.3]} 22. Qd3 {[%clk 0:01:56.7]}
22... Bc6 {[%clk 0:02:19]} 23. Ng3 {[%clk 0:01:50.8]} 23... Bd5 {[%clk
0:02:15.8]} 24. Re2 {[%clk 0:01:38.8]} 24... Rfd8 {[%clk 0:01:54.3]} 25. Rbe1
{[%clk 0:01:35.5]} 25... Qf6 {[%clk 0:01:50.2]} 26. hxg6 {[%clk 0:01:29.6]}
26... hxg6 {[%clk 0:01:51.1]} 27. Qb1 {[%clk 0:01:27.2]} 27... Kg7 {[%clk
0:01:45.4]} 28. f3 {[%clk 0:01:26.3]} 28... Rh8 {[%clk 0:01:45]} 29. Kf2 {[%clk
0:01:26.7]} 29... Nd6 {[%clk 0:01:38.7]} 30. Qb4 {[%clk 0:01:20.9]} 30... Nf5
{[%clk 0:01:35.2]} 31. Ne4 {[%clk 0:01:13.7]} 31... Qh4+ {[%clk 0:01:35.3]} 32.
g3 {[%clk 0:01:14.3]} 32... Qh2+ {[%clk 0:01:32.8]} 33. Kf1 {[%clk 0:01:14.8]}
33... Qh1+ {[%clk 0:01:32.1]} 34. Kf2 {[%clk 0:01:15.7]} 34... Rh2# {[%clk
0:01:32.2]} 0-1

[Event "Late-Titled-Tuesday-Blitz-September-05-2023"]
[Site "Chess.com"]
[Date "2023.09.05"]
[Round "1"]
[White "Rud_Makarian"]
[Black "eCztery"]
[Result "1-0"]
[WhiteElo "2948"]
[BlackElo "2482"]
[TimeControl "180+1"]
[EndTime "14:04:39 PDT"]
[Termination "Rud_Makarian won by checkmate"]

1. d4 {[%clk 0:03:00.9]} 1... c5 {[%clk 0:03:00.9]} 2. d5 {[%clk 0:03:00]} 2...
g6 {[%clk 0:03:00.8]} 3. c4 {[%clk 0:03:00.5]} 3... Bg7 {[%clk 0:03:01.1]} 4.
Nc3 {[%clk 0:03:01.3]} 4... d6 {[%clk 0:03:01.1]} 5. e4 {[%clk 0:03:01.6]} 5...
Nf6 {[%clk 0:03:00.1]} 6. Nf3 {[%clk 0:02:59.7]} 6... O-O {[%clk 0:02:59.4]} 7.
h3 {[%clk 0:03:00.4]} 7... a6 {[%clk 0:02:59.7]} 8. Bd3 {[%clk 0:02:59.3]} 8...
e6 {[%clk 0:02:53.6]} 9. O-O {[%clk 0:02:59.3]} 9... exd5 {[%clk 0:02:53.5]} 10.
exd5 {[%clk 0:02:58.6]} 10... Nbd7 {[%clk 0:02:51.1]} 11. Bf4 {[%clk 0:02:59]}
11... Qc7 {[%clk 0:02:43.6]} 12. Qd2 {[%clk 0:02:59.4]} 12... Nh5 {[%clk
0:02:43.2]} 13. Bh2 {[%clk 0:02:59.1]} 13... Re8 {[%clk 0:02:35.7]} 14. Rfe1
{[%clk 0:02:59]} 14... Rxe1+ {[%clk 0:02:35]} 15. Rxe1 {[%clk 0:02:59.9]} 15...
Nf8 {[%clk 0:02:35.4]} 16. g4 {[%clk 0:02:58.2]} 16... Nf6 {[%clk 0:02:35]} 17.
Qf4 {[%clk 0:02:58.3]} 17... N6d7 {[%clk 0:02:31.6]} 18. Qxd6 {[%clk 0:02:57.5]}
18... Qa5 {[%clk 0:02:19.5]} 19. Re8 {[%clk 0:02:50.6]} 19... b5 {[%clk
0:02:19.5]} 20. Ne5 {[%clk 0:02:22.6]} 20... Nxe5 {[%clk 0:01:58.3]} 21. Bxe5
{[%clk 0:02:23.5]} 21... Bb7 {[%clk 0:01:58.9]} 22. Rxa8 {[%clk 0:02:22.4]}
22... Bxa8 {[%clk 0:01:59.8]} 23. Bxg7 {[%clk 0:02:22.8]} 23... Kxg7 {[%clk
0:02:00.4]} 24. Qe5+ {[%clk 0:02:23.2]} 24... Kg8 {[%clk 0:01:59.5]} 25. Ne4
{[%clk 0:02:18.5]} 25... Nd7 {[%clk 0:01:43.9]} 26. Qe8+ {[%clk 0:02:18]} 26...
Nf8 {[%clk 0:01:44.1]} 27. Nf6+ {[%clk 0:01:58.7]} 27... Kg7 {[%clk 0:01:43.8]}
28. Qe5 {[%clk 0:01:59.2]} 28... bxc4 {[%clk 0:01:28.6]} 29. Ne8+ {[%clk
0:01:30]} 29... Kh6 {[%clk 0:01:27.8]} 30. g5+ {[%clk 0:01:24.4]} 30... Kh5
{[%clk 0:01:27.8]} 31. Ng7+ {[%clk 0:01:20.4]} 31... Kh4 {[%clk 0:01:26.4]} 32.
Qg3# {[%clk 0:01:19.6]} 1-0

[Event "Late-Titled-Tuesday-Blitz-September-05-2023"]
[Site "Chess.com"]
[Date "2023.09.05"]
[Round "1"]
[White "Polish_fighter3000"]
[Black "simplerXiao"]
[Result "1-0"]
[WhiteElo "3083"]
[BlackElo "2502"]
[TimeControl "180+1"]
[EndTime "14:04:57 PDT"]
[Termination "Polish_fighter3000 won by resignation"]

1. e4 {[%clk 0:03:00.9]} 1... e5 {[%clk 0:02:59.4]} 2. Nc3 {[%clk 0:02:59]} 2...
Nc6 {[%clk 0:02:58.4]} 3. g3 {[%clk 0:02:58.9]} 3... Bc5 {[%clk 0:02:57.7]} 4.
Bg2 {[%clk 0:02:59.4]} 4... Nf6 {[%clk 0:02:58]} 5. d3 {[%clk 0:02:59.2]} 5...
O-O {[%clk 0:02:58.5]} 6. Nge2 {[%clk 0:02:57.3]} 6... d6 {[%clk 0:02:55.8]} 7.
Na4 {[%clk 0:02:54]} 7... Bb6 {[%clk 0:02:52.5]} 8. Nxb6 {[%clk 0:02:53.5]} 8...
axb6 {[%clk 0:02:52.5]} 9. c4 {[%clk 0:02:45.4]} 9... Nd4 {[%clk 0:02:48.1]} 10.
Nxd4 {[%clk 0:02:44.3]} 10... exd4 {[%clk 0:02:48]} 11. O-O {[%clk 0:02:41.1]}
11... Bd7 {[%clk 0:02:43.5]} 12. Bg5 {[%clk 0:02:27.3]} 12... h6 {[%clk
0:02:42.5]} 13. Bxf6 {[%clk 0:02:26.9]} 13... Qxf6 {[%clk 0:02:43.4]} 14. a4
{[%clk 0:02:27]} 14... Rfe8 {[%clk 0:02:38.6]} 15. b3 {[%clk 0:02:25.5]} 15...
Qg6 {[%clk 0:02:31.8]} 16. Qd2 {[%clk 0:02:21.5]} 16... Ra5 {[%clk 0:02:27]} 17.
f4 {[%clk 0:02:10.3]} 17... Rea8 {[%clk 0:02:11.6]} 18. Rae1 {[%clk 0:02:03.9]}
18... Qh5 {[%clk 0:01:41.5]} 19. Qb2 {[%clk 0:01:59]} 19... Bh3 {[%clk
0:01:25.7]} 20. Qxd4 {[%clk 0:01:54.3]} 20... Bxg2 {[%clk 0:01:24.8]} 21. Kxg2
{[%clk 0:01:55.2]} 21... Qc5 {[%clk 0:01:07.6]} 22. Qc3 {[%clk 0:01:55]} 22...
Qc6 {[%clk 0:01:02.3]} 23. d4 {[%clk 0:01:41.7]} 23... Rh5 {[%clk 0:01:01.2]}
24. f5 {[%clk 0:01:34.6]} 24... Re8 {[%clk 0:00:57.6]} 25. Rf4 {[%clk
0:01:28.6]} 25... Qd7 {[%clk 0:00:50.2]} 26. Qf3 {[%clk 0:01:27.2]} 26... Rg5
{[%clk 0:00:47.8]} 27. h4 {[%clk 0:01:26.6]} 1-0

[Event "Late-Titled-Tuesday-Blitz-September-05-2023"]
[Site "Chess.com"]
[Date "2023.09.05"]
[Round "1"]
[White "Sajkochess"]
[Black "Druid24"]
[Result "1-0"]
[WhiteElo "2396"]
[BlackElo "2672"]
[TimeControl "180+1"]
[EndTime "14:04:58 PDT"]
[Termination "Sajkochess won by resignation"]

1. e4 {[%clk 0:03:00.9]} 1... e5 {[%clk 0:02:57.2]} 2. Nf3 {[%clk 0:02:59.4]}
2... Qe7 {[%clk 0:02:57.6]} 3. Nc3 {[%clk 0:02:58.3]} 3... c6 {[%clk 0:02:58.1]}
4. d4 {[%clk 0:02:55.8]} 4... d6 {[%clk 0:02:57.7]} 5. dxe5 {[%clk 0:02:50.9]}
5... dxe5 {[%clk 0:02:57.2]} 6. Bc4 {[%clk 0:02:46.2]} 6... Bg4 {[%clk
0:02:56.5]} 7. h3 {[%clk 0:02:44.1]} 7... Bh5 {[%clk 0:02:55.9]} 8. Qe2 {[%clk
0:02:39.5]} 8... Nf6 {[%clk 0:02:55.1]} 9. Bg5 {[%clk 0:02:36.7]} 9... Nbd7
{[%clk 0:02:54.8]} 10. O-O-O {[%clk 0:02:36.2]} 10... h6 {[%clk 0:02:51.9]} 11.
Bh4 {[%clk 0:02:35.3]} 11... g5 {[%clk 0:02:49.7]} 12. Bg3 {[%clk 0:02:35.5]}
12... Bg7 {[%clk 0:02:49.8]} 13. Qe3 {[%clk 0:02:17.7]} 13... Bg6 {[%clk
0:02:45.2]} 14. h4 {[%clk 0:02:08.3]} 14... g4 {[%clk 0:02:42.8]} 15. h5 {[%clk
0:01:51.1]} 15... Nxh5 {[%clk 0:02:39.7]} 16. Nh4 {[%clk 0:01:47.5]} 16... Bh7
{[%clk 0:02:33]} 17. Nf5 {[%clk 0:01:43.3]} 17... Bxf5 {[%clk 0:02:32.3]} 18.
exf5 {[%clk 0:01:37.4]} 18... Nxg3 {[%clk 0:02:32.1]} 19. Qxg3 {[%clk
0:01:35.7]} 19... h5 {[%clk 0:02:31.9]} 20. Ne4 {[%clk 0:01:32.8]} 20... Bh6+
{[%clk 0:01:47.1]} 21. Kb1 {[%clk 0:01:31.4]} 21... Bf4 {[%clk 0:01:46.8]} 22.
Qb3 {[%clk 0:00:55]} 22... Nc5 {[%clk 0:01:26.2]} 23. Bxf7+ {[%clk 0:00:44.9]}
23... Qxf7 {[%clk 0:01:23.7]} 24. Nd6+ {[%clk 0:00:44.5]} 1-0